[Event "*** Titled Tuesday Blitz"]
[Site "Chess.com"]
[Date "2019.02.05"]
[Round "8"]
[White "FMJoseHerrera"]
[Black "snowlord"]
[Result "1/2-1/2"]
[WhiteElo "2574"]
[BlackElo "2694"]
[TimeControl "180+2"]
[EndTime "15:04:43 PST"]
[Termination "Game drawn by stalemate"]

1. Nf3 {[%clk 0:03:01.9]} 1... c5 {[%clk 0:03:00.8]} 2. g3 {[%clk 0:03:02.6]}
2... Nf6 {[%clk 0:03:01.8]} 3. Bg2 {[%clk 0:03:03.9]} 3... e6 {[%clk 0:03:03.7]}
4. d3 {[%clk 0:03:04.8]} 4... d5 {[%clk 0:03:05.6]} 5. c3 {[%clk 0:03:05]} 5...
Nc6 {[%clk 0:03:07.2]} 6. a3 {[%clk 0:03:06.4]} 6... Be7 {[%clk 0:03:08.9]} 7.
b4 {[%clk 0:03:07.4]} 7... a5 {[%clk 0:03:08.9]} 8. b5 {[%clk 0:03:07.8]} 8...
Nb8 {[%clk 0:03:09.9]} 9. O-O {[%clk 0:03:08.6]} 9... a4 {[%clk 0:03:10.6]} 10.
c4 {[%clk 0:03:08.9]} 10... O-O {[%clk 0:03:10]} 11. Nc3 {[%clk 0:03:07.7]}
11... Qa5 {[%clk 0:03:10.7]} 12. Bd2 {[%clk 0:03:07.4]} 12... d4 {[%clk
0:03:11.8]} 13. Nd5 {[%clk 0:02:31.4]} 13... Qd8 {[%clk 0:03:11.9]} 14. Nxe7+
{[%clk 0:02:32.7]} 14... Qxe7 {[%clk 0:03:13.2]} 15. e3 {[%clk 0:02:24.1]} 15...
dxe3 {[%clk 0:02:46.5]} 16. Bxe3 {[%clk 0:02:24.6]} 16... b6 {[%clk 0:02:47.5]}
17. Ne5 {[%clk 0:02:20.7]} 17... Bb7 {[%clk 0:02:47.1]} 18. Nc6 {[%clk
0:02:19.9]} 18... Bxc6 {[%clk 0:02:47.4]} 19. bxc6 {[%clk 0:02:21.8]} 19... Qc7
{[%clk 0:02:42.7]} 20. Qf3 {[%clk 0:02:22]} 20... Rc8 {[%clk 0:02:37.3]} 21. Bg5
{[%clk 0:02:16.5]} 21... Ne8 {[%clk 0:02:36.5]} 22. Qg4 {[%clk 0:00:36.1]} 22...
Nxc6 {[%clk 0:02:35.8]} 23. Bf4 {[%clk 0:00:34.8]} 23... Qd7 {[%clk 0:02:28.2]}
24. Rab1 {[%clk 0:00:34.2]} 24... Ra6 {[%clk 0:02:24.7]} 25. Rfd1 {[%clk
0:00:32.8]} 25... Nf6 {[%clk 0:02:24.2]} 26. Qf3 {[%clk 0:00:32.8]} 26... Ne8
{[%clk 0:02:10.1]} 27. h4 {[%clk 0:00:33.1]} 27... Nd6 {[%clk 0:02:07.7]} 28.
Kh2 {[%clk 0:00:31.5]} 28... Nd4 {[%clk 0:02:08.6]} 29. Qg4 {[%clk 0:00:30.3]}
29... f5 {[%clk 0:02:06.7]} 30. Qh3 {[%clk 0:00:24.3]} 30... Nf7 {[%clk
0:02:04.9]} 31. h5 {[%clk 0:00:23.1]} 31... g5 {[%clk 0:01:59.5]} 32. hxg6
{[%clk 0:00:18]} 32... hxg6 {[%clk 0:02:00.2]} 33. Qh4 {[%clk 0:00:14.7]} 33...
Kg7 {[%clk 0:01:59.7]} 34. Bg5 {[%clk 0:00:12]} 34... Nxg5 {[%clk 0:01:39.8]}
35. Qxg5 {[%clk 0:00:13.9]} 35... Ne2 {[%clk 0:01:35]} 36. Bf3 {[%clk
0:00:14.5]} 36... Nd4 {[%clk 0:01:27.9]} 37. Bg2 {[%clk 0:00:14.4]} 37... Ne2
{[%clk 0:01:26.3]} 38. Bf3 {[%clk 0:00:15.3]} 38... Nc3 {[%clk 0:01:27.5]} 39.
Kg2 {[%clk 0:00:15.7]} 39... Nxb1 {[%clk 0:01:28.3]} 40. Rh1 {[%clk 0:00:17.2]}
40... Rh8 {[%clk 0:01:26.7]} 41. Rxh8 {[%clk 0:00:12.4]} 41... Kxh8 {[%clk
0:01:28.6]} 42. Qh6+ {[%clk 0:00:14.3]} 42... Kg8 {[%clk 0:01:27]} 43. Qxg6+
{[%clk 0:00:15.7]} 43... Kf8 {[%clk 0:01:28.3]} 44. Qf6+ {[%clk 0:00:16.8]}
44... Qf7 {[%clk 0:01:29]} 45. Qd8+ {[%clk 0:00:17.7]} 45... Qe8 {[%clk
0:01:28.2]} 46. Qf6+ {[%clk 0:00:18.8]} 46... Qf7 {[%clk 0:01:29]} 47. Qd8+
{[%clk 0:00:20]} 47... Kg7 {[%clk 0:01:30.5]} 48. Qg5+ {[%clk 0:00:20.8]} 48...
Kh7 {[%clk 0:01:27]} 49. Qh4+ {[%clk 0:00:21.1]} 49... Kg7 {[%clk 0:01:28.5]}
50. Qg5+ {[%clk 0:00:22.4]} 50... Qg6 {[%clk 0:01:28.1]} 51. Qe7+ {[%clk
0:00:23.2]} 51... Kg8 {[%clk 0:01:21.4]} 52. Qb7 {[%clk 0:00:21.4]} 52... Nd2
{[%clk 0:01:07.4]} 53. Qxa6 {[%clk 0:00:21.8]} 53... Nxf3 {[%clk 0:01:08.4]} 54.
Qa8+ {[%clk 0:00:23.4]} 54... Kg7 {[%clk 0:01:07.3]} 55. Qxf3 {[%clk 0:00:25.3]}
55... e5 {[%clk 0:01:07]} 56. Qb7+ {[%clk 0:00:26]} 56... Kh6 {[%clk 0:01:07.5]}
57. Qe7 {[%clk 0:00:27.3]} 57... e4 {[%clk 0:01:05.2]} 58. Qh4+ {[%clk
0:00:26.5]} 58... Kg7 {[%clk 0:01:04.3]} 59. Qe7+ {[%clk 0:00:28.1]} 59... Kg8
{[%clk 0:01:05.2]} 60. Qd8+ {[%clk 0:00:28.3]} 60... Kh7 {[%clk 0:01:06.6]} 61.
Qe7+ {[%clk 0:00:29.2]} 61... Kg8 {[%clk 0:01:08.1]} 62. dxe4 {[%clk 0:00:30.3]}
62... fxe4 {[%clk 0:01:08.3]} 63. Qd8+ {[%clk 0:00:26.5]} 63... Kf7 {[%clk
0:01:09.3]} 64. Qc7+ {[%clk 0:00:26.2]} 64... Kg8 {[%clk 0:01:09.4]} 65. Qb8+
{[%clk 0:00:27.3]} 65... Kh7 {[%clk 0:01:10.4]} 66. Qa7+ {[%clk 0:00:28.5]}
66... Kh6 {[%clk 0:01:10.5]} 67. Qxa4 {[%clk 0:00:29.7]} 67... e3 {[%clk
0:01:12]} 68. fxe3 {[%clk 0:00:21.4]} 68... Qe4+ {[%clk 0:01:12.8]} 69. Kh3
{[%clk 0:00:22.9]} 69... Qh1+ {[%clk 0:01:09.4]} 70. Kg4 {[%clk 0:00:24]} 70...
Qe4+ {[%clk 0:01:10.9]} 71. Kh3 {[%clk 0:00:25.1]} 71... Qh1+ {[%clk 0:01:11.7]}
72. Kg4 {[%clk 0:00:26.6]} 72... Qe4+ {[%clk 0:01:13.1]} 73. Kh3 {[%clk
0:00:27.6]} 73... Kg5 {[%clk 0:01:12.7]} 74. Qd1 {[%clk 0:00:23.3]} 74... Qxc4
{[%clk 0:01:08.1]} 75. Qd8+ {[%clk 0:00:21.6]} 75... Kh5 {[%clk 0:01:09.1]} 76.
Qh8+ {[%clk 0:00:21]} 76... Kg6 {[%clk 0:01:08.1]} 77. Qe8+ {[%clk 0:00:20.8]}
77... Kg5 {[%clk 0:01:03.2]} 78. Qd8+ {[%clk 0:00:21.7]} 78... Kh5 {[%clk
0:01:04]} 79. Qe8+ {[%clk 0:00:14.2]} 79... Kh6 {[%clk 0:01:00]} 80. Qc6+ {[%clk
0:00:13.2]} 80... Kg5 {[%clk 0:00:58.5]} 81. Qxb6 {[%clk 0:00:10]} 81... Qf1+
{[%clk 0:00:51]} 82. Kh2 {[%clk 0:00:11.2]} 82... Qf2+ {[%clk 0:00:52.3]} 83.
Kh3 {[%clk 0:00:11.4]} 83... Qf1+ {[%clk 0:00:53.6]} 84. Kh2 {[%clk 0:00:12.8]}
84... Qe2+ {[%clk 0:00:53.8]} 85. Kh3 {[%clk 0:00:13.1]} 85... Qg4+ {[%clk
0:00:52]} 86. Kg2 {[%clk 0:00:14.2]} 86... Qe2+ {[%clk 0:00:53.6]} 87. Kh3
{[%clk 0:00:14.1]} 87... Qxe3 {[%clk 0:00:52.8]} 88. Qd8+ {[%clk 0:00:14.1]}
88... Kg6 {[%clk 0:00:54.1]} 89. Qd6+ {[%clk 0:00:14]} 89... Kg5 {[%clk
0:00:48.8]} 90. Qd5+ {[%clk 0:00:14.5]} 90... Kg6 {[%clk 0:00:48.5]} 91. Qg8+
{[%clk 0:00:14.4]} 91... Kf6 {[%clk 0:00:49]} 92. Qf8+ {[%clk 0:00:14.9]} 92...
Kg6 {[%clk 0:00:50]} 93. Qg8+ {[%clk 0:00:15.6]} 93... Kf6 {[%clk 0:00:43.3]}
94. a4 {[%clk 0:00:09.4]} 94... Qe4 {[%clk 0:00:32.3]} 95. Qf8+ {[%clk 0:00:09]}
95... Kg6 {[%clk 0:00:33.6]} 96. Qxc5 {[%clk 0:00:07.4]} 96... Qh1+ {[%clk
0:00:32.6]} 97. Kg4 {[%clk 0:00:08.7]} 97... Qe4+ {[%clk 0:00:33.7]} 98. Kh3
{[%clk 0:00:09.3]} 98... Qh1+ {[%clk 0:00:33.3]} 99. Kg4 {[%clk 0:00:10.5]}
99... Qe4+ {[%clk 0:00:34.1]} 100. Kh3 {[%clk 0:00:08.7]} 100... Qxa4 {[%clk
0:00:35.6]} 101. Qd6+ {[%clk 0:00:09]} 101... Kg5 {[%clk 0:00:36.9]} 102. Qe7+
{[%clk 0:00:09.6]} 102... Kg6 {[%clk 0:00:38]} 103. Qe6+ {[%clk 0:00:10.4]}
103... Kg5 {[%clk 0:00:39.3]} 104. Qg8+ {[%clk 0:00:11.5]} 104... Kf6 {[%clk
0:00:40.1]} 105. Qh8+ {[%clk 0:00:12.3]} 105... Kg6 {[%clk 0:00:41]} 106. Qh4
{[%clk 0:00:12.7]} 106... Qc2 {[%clk 0:00:39.5]} 107. Qg4+ {[%clk 0:00:14]}
107... Kf6 {[%clk 0:00:40.9]} 108. Qf4+ {[%clk 0:00:15.3]} 108... Kg6 {[%clk
0:00:42.3]} 109. Qg4+ {[%clk 0:00:14.6]} 109... Kf6 {[%clk 0:00:43.4]} 110. Qf3+
{[%clk 0:00:15.6]} 110... Kg7 {[%clk 0:00:43.9]} 111. g4 {[%clk 0:00:17]} 111...
Qc1 {[%clk 0:00:44]} 112. Kh4 {[%clk 0:00:17.6]} 112... Qh6+ {[%clk 0:00:44.1]}
113. Kg3 {[%clk 0:00:19.1]} 113... Qd6+ {[%clk 0:00:45.6]} 114. Kh3 {[%clk
0:00:20.3]} 114... Qh6+ {[%clk 0:00:46.1]} 115. Kg2 {[%clk 0:00:21.5]} 115...
Qd2+ {[%clk 0:00:47]} 116. Kg3 {[%clk 0:00:23.2]} 116... Qd6+ {[%clk 0:00:47.7]}
117. Qf4 {[%clk 0:00:22.9]} 117... Qd1 {[%clk 0:00:41]} 118. Qe5+ {[%clk
0:00:23.5]} 118... Kg6 {[%clk 0:00:41.4]} 119. Qf5+ {[%clk 0:00:24.5]} 119...
Kg7 {[%clk 0:00:42.7]} 120. Qf2 {[%clk 0:00:23.7]} 120... Qd3+ {[%clk
0:00:42.3]} 121. Kg2 {[%clk 0:00:22.3]} 121... Qe4+ {[%clk 0:00:42.9]} 122. Qf3
{[%clk 0:00:23.9]} 122... Qe5 {[%clk 0:00:43.5]} 123. Qb7+ {[%clk 0:00:21.2]}
123... Kg6 {[%clk 0:00:43.9]} 124. Qb1+ {[%clk 0:00:21.4]} 124... Kg7 {[%clk
0:00:44.8]} 125. Qd3 {[%clk 0:00:21]} 125... Qb2+ {[%clk 0:00:44.5]} 126. Kh3
{[%clk 0:00:21.5]} 126... Qb7 {[%clk 0:00:44.5]} 127. Qd4+ {[%clk 0:00:20.3]}
127... Kg6 {[%clk 0:00:45.6]} 128. Qd6+ {[%clk 0:00:20.8]} 128... Kg7 {[%clk
0:00:45.8]} 129. Qe5+ {[%clk 0:00:22.1]} 129... Kg6 {[%clk 0:00:46.9]} 130. Qf5+
{[%clk 0:00:22.9]} 130... Kg7 {[%clk 0:00:48.2]} 131. Qg5+ {[%clk 0:00:23.8]}
131... Kf7 {[%clk 0:00:49.6]} 132. Qf5+ {[%clk 0:00:19.4]} 132... Kg7 {[%clk
0:00:50.6]} 133. Qe5+ {[%clk 0:00:20.5]} 133... Kf7 {[%clk 0:00:50.9]} 134. Kh4
{[%clk 0:00:20]} 134... Qh1+ {[%clk 0:00:48.9]} 135. Kg5 {[%clk 0:00:21.3]}
135... Qc1+ {[%clk 0:00:49.8]} 136. Kf5 {[%clk 0:00:13.7]} 136... Qf1+ {[%clk
0:00:48]} 137. Kg5 {[%clk 0:00:13.3]} 137... Qc1+ {[%clk 0:00:47.8]} 138. Kh5
{[%clk 0:00:09.8]} 138... Qh1+ {[%clk 0:00:46]} 139. Kg5 {[%clk 0:00:11.1]}
139... Qc1+ {[%clk 0:00:45.3]} 140. Qf4+ {[%clk 0:00:10.7]} 140... Qxf4+ {[%clk
0:00:45.7]} 141. Kxf4 {[%clk 0:00:12.6]} 141... Kg6 {[%clk 0:00:46.6]} 142. Kf3
{[%clk 0:00:12.7]} 142... Kg5 {[%clk 0:00:47.4]} 143. Kg3 {[%clk 0:00:14.3]}
143... Kg6 {[%clk 0:00:49.3]} 144. Kf3 {[%clk 0:00:16.2]} 144... Kg5 {[%clk
0:00:50.1]} 145. Kg3 {[%clk 0:00:18.1]} 145... Kg6 {[%clk 0:00:52]} 146. Kf4
{[%clk 0:00:20]} 146... Kf6 {[%clk 0:00:53.2]} 147. g5+ {[%clk 0:00:21.9]}
147... Kg6 {[%clk 0:00:54.6]} 148. Kg4 {[%clk 0:00:23.8]} 148... Kg7 {[%clk
0:00:56.2]} 149. Kf5 {[%clk 0:00:25.7]} 149... Kf7 {[%clk 0:00:57.3]} 150. g6+
{[%clk 0:00:27.6]} 150... Kg7 {[%clk 0:00:58.6]} 151. Kg5 {[%clk 0:00:29.5]}
151... Kg8 {[%clk 0:00:59.7]} 152. Kf6 {[%clk 0:00:31.4]} 152... Kf8 {[%clk
0:01:00.8]} 153. Ke6 {[%clk 0:00:32.6]} 153... Kg7 {[%clk 0:01:01.6]} 154. Kf5
{[%clk 0:00:34.5]} 154... Kg8 {[%clk 0:01:02.5]} 155. Kf6 {[%clk 0:00:36.4]}
155... Kf8 {[%clk 0:01:02.8]} 156. g7+ {[%clk 0:00:38.3]} 156... Kg8 {[%clk
0:01:03.9]} 157. Kg6 {[%clk 0:00:40.2]} 1/2-1/2

[Event "*** Titled Tuesday Blitz"]
[Site "Chess.com"]
[Date "2019.02.05"]
[Round "9"]
[White "Quiet_Desperation"]
[Black "BvsN"]
[Result "0-1"]
[WhiteElo "2404"]
[BlackElo "2303"]
[TimeControl "180+2"]
[EndTime "15:06:06 PST"]
[Termination "BvsN won by resignation"]

1. e4 {[%clk 0:03:01.9]} 1... c5 {[%clk 0:03:00.2]} 2. d4 {[%clk 0:03:02.7]}
2... cxd4 {[%clk 0:03:01.1]} 3. c3 {[%clk 0:03:04.3]} 3... Nf6 {[%clk
0:03:02.4]} 4. e5 {[%clk 0:03:05.4]} 4... Nd5 {[%clk 0:03:03.5]} 5. Nf3 {[%clk
0:03:07.3]} 5... e6 {[%clk 0:03:04]} 6. Bc4 {[%clk 0:03:08.8]} 6... Nc6 {[%clk
0:02:58.2]} 7. O-O {[%clk 0:03:09.1]} 7... d6 {[%clk 0:02:58.9]} 8. cxd4 {[%clk
0:03:09.1]} 8... Nb6 {[%clk 0:02:57.4]} 9. Bd3 {[%clk 0:03:06.5]} 9... Nb4
{[%clk 0:02:47.9]} 10. Qa4+ {[%clk 0:02:59.2]} 10... Nxa4 {[%clk 0:02:44.8]} 0-1

[Event "*** Titled Tuesday Blitz"]
[Site "Chess.com"]
[Date "2019.02.05"]
[Round "9"]
[White "staz_staz"]
[Black "Th3ChessViking"]
[Result "1/2-1/2"]
[WhiteElo "2361"]
[BlackElo "2465"]
[TimeControl "180+2"]
[EndTime "15:06:13 PST"]
[Termination "Game drawn by agreement"]

1. c4 {[%clk 0:02:59.9]} 1... c5 {[%clk 0:03:00.3]} 2. Nf3 {[%clk 0:02:55.6]}
2... g6 {[%clk 0:03:01.4]} 3. g3 {[%clk 0:02:56.4]} 3... Bg7 {[%clk 0:03:02.9]}
4. Bg2 {[%clk 0:02:56.6]} 4... Nc6 {[%clk 0:03:02.5]} 5. Nc3 {[%clk 0:02:57.1]}
5... d6 {[%clk 0:03:04.4]} 6. e4 {[%clk 0:02:57.3]} 6... Bg4 {[%clk 0:03:05.2]}
7. d3 {[%clk 0:02:57.3]} 7... Nf6 {[%clk 0:03:05.3]} 8. h3 {[%clk 0:02:57.6]}
8... Bxf3 {[%clk 0:03:06.3]} 9. Bxf3 {[%clk 0:02:59.5]} 9... Nd7 {[%clk
0:03:08.2]} 10. O-O {[%clk 0:02:59.4]} 10... Nf8 {[%clk 0:03:10.1]} 11. Bg2
{[%clk 0:03:00]} 11... Ne6 {[%clk 0:03:12]} 12. Be3 {[%clk 0:03:00.7]} 12... O-O
{[%clk 0:03:13.1]} 13. f4 {[%clk 0:03:01.4]} 13... Ned4 {[%clk 0:03:14.3]} 14.
f5 {[%clk 0:03:01.9]} 14... a6 {[%clk 0:03:15.5]} 15. Qg4 {[%clk 0:02:58.7]}
15... Ne5 {[%clk 0:03:12.4]} 1/2-1/2

[Event "*** Titled Tuesday Blitz"]
[Site "Chess.com"]
[Date "2019.02.05"]
[Round "9"]
[White "Zufi1811"]
[Black "SolidAsARook"]
[Result "1-0"]
[WhiteElo "2363"]
[BlackElo "2206"]
[TimeControl "180+2"]
[EndTime "15:07:20 PST"]
[Termination "Zufi1811 won by resignation"]

1. g3 {[%clk 0:03:01.9]} 1... d5 {[%clk 0:02:59.3]} 2. Bg2 {[%clk 0:03:02.8]}
2... e6 {[%clk 0:03:00.6]} 3. f4 {[%clk 0:03:04]} 3... f5 {[%clk 0:03:00.6]} 4.
Nf3 {[%clk 0:03:05.3]} 4... Nf6 {[%clk 0:03:01.6]} 5. O-O {[%clk 0:03:06.9]}
5... Be7 {[%clk 0:03:02.3]} 6. d3 {[%clk 0:03:08.4]} 6... O-O {[%clk 0:03:03]}
7. Nc3 {[%clk 0:03:09.4]} 7... b6 {[%clk 0:02:59.5]} 8. e4 {[%clk 0:03:09.5]}
8... dxe4 {[%clk 0:02:55.2]} 9. dxe4 {[%clk 0:03:11.4]} 9... Bc5+ {[%clk
0:02:48.5]} 10. Kh1 {[%clk 0:03:11.2]} 10... Ng4 {[%clk 0:02:48.3]} 11. Qxd8
{[%clk 0:03:03.7]} 11... Rxd8 {[%clk 0:02:50.2]} 12. h3 {[%clk 0:03:04.1]} 12...
Ne3 {[%clk 0:02:42.4]} 13. Bxe3 {[%clk 0:03:03.1]} 13... Bxe3 {[%clk 0:02:44.1]}
14. Rad1 {[%clk 0:02:54.5]} 14... Rf8 {[%clk 0:02:33.5]} 15. exf5 {[%clk
0:02:50.2]} 15... exf5 {[%clk 0:02:26.4]} 16. Nd5 {[%clk 0:02:31.7]} 1-0

[Event "*** Titled Tuesday Blitz"]
[Site "Chess.com"]
[Date "2019.02.05"]
[Round "9"]
[White "WorldChampionBulletChess"]
[Black "GremioPrudente"]
[Result "1/2-1/2"]
[WhiteElo "2092"]
[BlackElo "2056"]
[TimeControl "180+2"]
[EndTime "15:07:20 PST"]
[Termination "Game drawn by agreement"]

1. d4 {[%clk 0:03:01.9]} 1... d5 {[%clk 0:02:59.4]} 2. Nf3 {[%clk 0:03:02.6]}
2... e6 {[%clk 0:02:56.1]} 3. Bf4 {[%clk 0:02:59.7]} 3... Bd6 {[%clk 0:02:57]}
4. Bg3 {[%clk 0:02:58.7]} 4... Nf6 {[%clk 0:02:55.2]} 5. Nbd2 {[%clk 0:02:59.7]}
5... O-O {[%clk 0:02:55.7]} 6. e3 {[%clk 0:03:01]} 6... c5 {[%clk 0:02:56.4]} 7.
dxc5 {[%clk 0:03:01.4]} 7... Bxc5 {[%clk 0:02:52]} 8. Bd3 {[%clk 0:03:02.2]}
8... Nc6 {[%clk 0:02:40.7]} 9. c3 {[%clk 0:03:03.3]} 9... Qe7 {[%clk 0:02:37.2]}
10. Qe2 {[%clk 0:03:02]} 10... e5 {[%clk 0:02:30.8]} 11. Bb5 {[%clk 0:03:01.1]}
11... Bg4 {[%clk 0:02:26.1]} 12. h3 {[%clk 0:02:57.8]} 12... Bxf3 {[%clk
0:02:26]} 13. Nxf3 {[%clk 0:02:55.8]} 13... e4 {[%clk 0:02:20.5]} 14. Nd4 {[%clk
0:02:49.1]} 14... Nxd4 {[%clk 0:02:11.9]} 15. cxd4 {[%clk 0:02:51]} 15... Bd6
{[%clk 0:02:12.8]} 16. Bxd6 {[%clk 0:02:50.3]} 16... Qxd6 {[%clk 0:02:13.9]} 17.
O-O {[%clk 0:02:51.2]} 17... Rac8 {[%clk 0:02:13.1]} 1/2-1/2

[Event "*** Titled Tuesday Blitz"]
[Site "Chess.com"]
[Date "2019.02.05"]
[Round "9"]
[White "BillForster"]
[Black "PotapovaM"]
[Result "0-1"]
[WhiteElo "1723"]
[BlackElo "2408"]
[TimeControl "180+2"]
[EndTime "15:08:14 PST"]
[Termination "PotapovaM won by resignation"]

1. d4 {[%clk 0:03:01.9]} 1... Nf6 {[%clk 0:03:00.6]} 2. c4 {[%clk 0:03:01.7]}
2... g6 {[%clk 0:03:01]} 3. Nc3 {[%clk 0:03:01.3]} 3... d5 {[%clk 0:03:02]} 4.
cxd5 {[%clk 0:02:51.4]} 4... Nxd5 {[%clk 0:03:03.9]} 5. Bd2 {[%clk 0:02:52.1]}
5... Bg7 {[%clk 0:03:01.5]} 6. e4 {[%clk 0:02:51.5]} 6... Nxc3 {[%clk
0:03:01.8]} 7. Bxc3 {[%clk 0:02:51.6]} 7... O-O {[%clk 0:03:02.7]} 8. Nf3 {[%clk
0:02:42.2]} 8... b6 {[%clk 0:02:59.1]} 9. Bd3 {[%clk 0:02:38]} 9... Bb7 {[%clk
0:02:54.1]} 10. h4 {[%clk 0:02:35]} 10... h5 {[%clk 0:02:52.8]} 11. Qb3 {[%clk
0:02:26.2]} 11... Nc6 {[%clk 0:02:48.6]} 12. e5 {[%clk 0:02:06]} 12... a5 {[%clk
0:02:27.2]} 13. Bxg6 {[%clk 0:01:32.3]} 13... a4 {[%clk 0:02:27]} 14. Qe6 {[%clk
0:01:30.8]} 0-1

[Event "*** Titled Tuesday Blitz"]
[Site "Chess.com"]
[Date "2019.02.05"]
[Round "9"]
[White "Shukh_Nikolay"]
[Black "KlyashtornyVladislav"]
[Result "1-0"]
[WhiteElo "2414"]
[BlackElo "2202"]
[TimeControl "180+2"]
[EndTime "15:08:41 PST"]
[Termination "Shukh_Nikolay won by resignation"]

1. Nf3 {[%clk 0:03:01.9]} 1... Nf6 {[%clk 0:03:00.1]} 2. c4 {[%clk 0:03:02.4]}
2... g6 {[%clk 0:02:59.4]} 3. b3 {[%clk 0:03:02.8]} 3... Bg7 {[%clk 0:03:00.6]}
4. Bb2 {[%clk 0:03:04.4]} 4... O-O {[%clk 0:03:01.4]} 5. g3 {[%clk 0:03:05.7]}
5... d5 {[%clk 0:03:02.6]} 6. cxd5 {[%clk 0:03:05.5]} 6... Nxd5 {[%clk
0:03:01.9]} 7. Bxg7 {[%clk 0:03:06.4]} 7... Kxg7 {[%clk 0:03:03.6]} 8. Bg2
{[%clk 0:03:07.7]} 8... Nc6 {[%clk 0:02:52.4]} 9. O-O {[%clk 0:03:07.6]} 9... e5
{[%clk 0:02:50.1]} 10. d3 {[%clk 0:03:07.9]} 10... Be6 {[%clk 0:02:47]} 11. Nbd2
{[%clk 0:03:04.7]} 11... Qe7 {[%clk 0:02:37.2]} 12. Nc4 {[%clk 0:03:04.9]} 12...
f6 {[%clk 0:02:30.3]} 13. Rc1 {[%clk 0:03:05.6]} 13... Rad8 {[%clk 0:02:29.1]}
14. Qd2 {[%clk 0:03:04.6]} 14... Nb6 {[%clk 0:02:13.6]} 15. Na5 {[%clk 0:03:01]}
15... Nxa5 {[%clk 0:02:04.8]} 16. Qxa5 {[%clk 0:03:01.4]} 16... Ra8 {[%clk
0:01:56.9]} 17. Nd2 {[%clk 0:03:00.6]} 17... c6 {[%clk 0:01:56.5]} 18. Ne4
{[%clk 0:02:59.5]} 18... Bd5 {[%clk 0:01:39.7]} 19. Qc5 {[%clk 0:03:00.2]} 19...
Qxc5 {[%clk 0:01:17.2]} 20. Nxc5 {[%clk 0:03:00.6]} 20... Rf7 {[%clk 0:01:14.2]}
21. e4 {[%clk 0:02:59.7]} 1-0

[Event "*** Titled Tuesday Blitz"]
[Site "Chess.com"]
[Date "2019.02.05"]
[Round "9"]
[White "NotFischer"]
[Black "DonPreuss"]
[Result "0-1"]
[WhiteElo "2121"]
[BlackElo "2204"]
[TimeControl "180+2"]
[EndTime "15:09:49 PST"]
[Termination "DonPreuss won by resignation"]

1. d4 {[%clk 0:03:01.9]} 1... Nc6 {[%clk 0:03:00.7]} 2. Nf3 {[%clk 0:02:53]}
2... d6 {[%clk 0:02:59.1]} 3. e4 {[%clk 0:02:50.9]} 3... g6 {[%clk 0:02:59.8]}
4. Nc3 {[%clk 0:02:51.4]} 4... Bg7 {[%clk 0:03:00.4]} 5. Be2 {[%clk 0:02:52.9]}
5... e5 {[%clk 0:03:00.9]} 6. d5 {[%clk 0:02:44.9]} 6... Nb8 {[%clk 0:03:01.6]}
7. O-O {[%clk 0:02:46.1]} 7... Ne7 {[%clk 0:03:01.8]} 8. Bg5 {[%clk 0:02:45.6]}
8... O-O {[%clk 0:02:59]} 9. Qd2 {[%clk 0:02:46.7]} 9... f5 {[%clk 0:02:55]} 10.
Bh6 {[%clk 0:02:46.3]} 10... f4 {[%clk 0:02:55.3]} 11. Bxg7 {[%clk 0:02:46.6]}
11... Kxg7 {[%clk 0:02:57.2]} 12. Ne1 {[%clk 0:02:46]} 12... g5 {[%clk 0:02:56]}
13. f3 {[%clk 0:02:39.1]} 13... h5 {[%clk 0:02:47.9]} 14. Nd3 {[%clk 0:02:38.6]}
14... Ng6 {[%clk 0:02:47.9]} 15. Kf2 {[%clk 0:02:38.5]} 15... g4 {[%clk
0:02:26.4]} 16. Ke1 {[%clk 0:02:39.2]} 16... Qh4+ {[%clk 0:02:25.1]} 17. Kd1
{[%clk 0:02:37.1]} 17... Qxh2 {[%clk 0:02:24]} 18. Ne1 {[%clk 0:02:30.7]} 18...
g3 {[%clk 0:02:13.8]} 19. Kc1 {[%clk 0:02:25.4]} 19... h4 {[%clk 0:02:08.3]} 20.
Bd3 {[%clk 0:02:26.7]} 20... h3 {[%clk 0:02:08.8]} 21. gxh3 {[%clk 0:02:27.6]}
21... Qxd2+ {[%clk 0:02:04.4]} 22. Kxd2 {[%clk 0:02:28.2]} 22... Bxh3 {[%clk
0:02:05.9]} 23. Rg1 {[%clk 0:02:22.6]} 23... Kf6 {[%clk 0:02:00]} 24. Ng2 {[%clk
0:02:17.5]} 24... Rh8 {[%clk 0:01:55.4]} 25. Ne2 {[%clk 0:02:05]} 25... Nd7
{[%clk 0:01:39]} 26. c4 {[%clk 0:01:53.4]} 26... Bxg2 {[%clk 0:01:26.3]} 27.
Rxg2 {[%clk 0:01:52.5]} 27... Nh4 {[%clk 0:01:27.3]} 0-1

[Event "*** Titled Tuesday Blitz"]
[Site "Chess.com"]
[Date "2019.02.05"]
[Round "9"]
[White "MFguimaraes"]
[Black "AkibaRubi"]
[Result "1-0"]
[WhiteElo "2288"]
[BlackElo "2519"]
[TimeControl "180+2"]
[EndTime "15:09:54 PST"]
[Termination "MFguimaraes won on time"]

1. e4 {[%clk 0:03:01.9]} 1... e5 {[%clk 0:03:00.5]} 2. Nf3 {[%clk 0:03:00.9]}
2... Nc6 {[%clk 0:03:01.3]} 3. Bc4 {[%clk 0:03:01.9]} 3... Bc5 {[%clk
0:02:58.7]} 4. b4 {[%clk 0:03:02.3]} 4... Bxb4 {[%clk 0:02:39.5]} 5. c3 {[%clk
0:03:02.3]} 5... Ba5 {[%clk 0:02:14.2]} 6. d4 {[%clk 0:03:01.4]} 6... exd4
{[%clk 0:02:14]} 7. O-O {[%clk 0:03:01.7]} 7... d6 {[%clk 0:02:11.3]} 8. Qb3
{[%clk 0:02:57.1]} 8... Qe7 {[%clk 0:01:53.6]} 9. cxd4 {[%clk 0:02:57.1]} 9...
Nf6 {[%clk 0:01:38.7]} 10. e5 {[%clk 0:02:55.9]} 10... dxe5 {[%clk 0:01:20.3]}
11. dxe5 {[%clk 0:02:56.6]} 11... Ng4 {[%clk 0:00:44.2]} 12. Ba3 {[%clk
0:02:45]} 12... Qd7 {[%clk 0:00:10.3]} 13. Nc3 {[%clk 0:02:20.9]} 13... Ne7
{[%clk 0:00:03.1]} 14. h3 {[%clk 0:02:12.8]} 1-0

[Event "*** Titled Tuesday Blitz"]
[Site "Chess.com"]
[Date "2019.02.05"]
[Round "9"]
[White "Gentlejimmy7"]
[Black "Nathan_Filgueiras"]
[Result "1-0"]
[WhiteElo "2311"]
[BlackElo "2277"]
[TimeControl "180+2"]
[EndTime "15:10:02 PST"]
[Termination "Gentlejimmy7 won by resignation"]

1. d4 {[%clk 0:03:01.9]} 1... Nf6 {[%clk 0:03:00.2]} 2. Nf3 {[%clk 0:02:59.5]}
2... e6 {[%clk 0:03:00.2]} 3. g3 {[%clk 0:03:00.8]} 3... b6 {[%clk 0:02:55.4]}
4. c4 {[%clk 0:02:59.1]} 4... Bb7 {[%clk 0:02:55.1]} 5. Nc3 {[%clk 0:03:00.5]}
5... Bb4 {[%clk 0:02:50.2]} 6. Bg2 {[%clk 0:03:01.7]} 6... O-O {[%clk
0:02:43.1]} 7. O-O {[%clk 0:03:03]} 7... d5 {[%clk 0:02:33.4]} 8. cxd5 {[%clk
0:02:59.8]} 8... exd5 {[%clk 0:02:30.1]} 9. Ne5 {[%clk 0:02:57.8]} 9... Be7
{[%clk 0:01:46.5]} 10. Qa4 {[%clk 0:02:56.7]} 10... c5 {[%clk 0:01:39.8]} 11.
dxc5 {[%clk 0:02:48]} 11... bxc5 {[%clk 0:01:41.7]} 12. Rd1 {[%clk 0:02:44.7]}
12... Qc7 {[%clk 0:01:03.3]} 13. Bf4 {[%clk 0:02:41.4]} 13... Bd6 {[%clk
0:01:01.5]} 14. Nb5 {[%clk 0:02:42.3]} 14... Bc6 {[%clk 0:00:44.2]} 15. Nxc7
{[%clk 0:02:33.3]} 15... Bxa4 {[%clk 0:00:44.8]} 16. Nxa8 {[%clk 0:02:34.9]}
16... Na6 {[%clk 0:00:45.9]} 17. b3 {[%clk 0:02:30.3]} 17... Bb5 {[%clk
0:00:35.1]} 18. Bxd5 {[%clk 0:02:14.4]} 18... Nxd5 {[%clk 0:00:32.7]} 19. Rxd5
{[%clk 0:02:14.8]} 19... Bxe5 {[%clk 0:00:33.7]} 20. Bxe5 {[%clk 0:02:12.2]}
20... Bxe2 {[%clk 0:00:34.5]} 21. Nc7 {[%clk 0:02:09.9]} 1-0